Cogmind - Beta 13 @@@ ROGUE MODE // 2024.04.26 @ 17:10:01 Player: Leaves Result: Destroyed by H-77 Assassin with Coil Gun Performance ------------- Evolutions (7) 3500 Regions Visited (14) 2800 Robots Destroyed (54) 270 Value Destroyed (1636) 1636 Prototype IDs (29) 580 Alien Tech Used (0) 0 Bonus (343) 343 TOTAL SCORE: 9129 Bonus ------- Follower Combat Kills 48 Aligned with FarCom 300 Friendly Fire -5 Cogmind --------- Core Integrity 0/1300 Matter 180/300 Energy 99/100 System Corruption 10% Temperature Cool (0) Movement Core (50) Location -3/Research Parts ------- > --- POWER (1) -------- (None) > --- PROPULSION (8) --- (None) > --- UTILITY (10) ----- (None) > --- WEAPON (2) ------- (None) > --- INVENTORY (5) ---- Faulty Heavy Ion Engine Gravity Neutralizer Improved Reaction Control System Peak State ------------ > --- POWER ------------ Micro Antimatter Reactor > --- PROPULSION ------- Medium Treads Improved Flight Unit Xenon Bombardment Thruster Xenon Bombardment Thruster Improved Cesium-ion Thruster Improved Surge Thruster Field Propulsion Array > --- UTILITY ---------- Lightpack 2.0 Transmission Jammer ECM Suite Improved Reaction Control System Improved Medium Armor Plating > --- WEAPON ----------- Micro-nuke Launcher Powered Hammer > --- INVENTORY -------- Heavy Ion Engine Heavy Ion Engine Heavy Ion Engine Heavy Ion Engine Micro Nuclear Core Micro Nuclear Core Micro Nuclear Core Micro Nuclear Core Light Antimatter Reactor Improved Aluminum Leg Armored Leg Gyrokinetic Inverter Improved Antigrav System Improved Linear Gravjet Antigrav Array Xenon Bombardment Thruster Gravity Neutralizer ECM Suite Improved Reaction Control System Improved Power Shielding Improved Power Shielding Focal Shield Focal Shield Focal Shield Improved Focal Shield Improved Thermal Shield Improved Recalibrator Drone Bay Heavy EM Pulse Gun Improved Arc Projector Improved Medium Laser Improved Medium Laser Gatling Laser EMP Blaster Proton Missile Launcher Axe Chainsword Chainsword [Rating: 119] Favorites ----------- Power Ion Engine Engine Ion Engine Power Core Micro Nuclear Core Reactor Micro Antimatter Reactor Propulsion Light Treads Treads Light Treads Leg Improved Aluminum Leg Hover Unit Gyrokinetic Inverter Flight Unit Improved Flight Unit Utility Light Armor Plating Device ECM Suite Storage Lightpack 2.0 Processor Machine Analyzer Hackware Hacking Suite Protection Light Armor Plating Weapon Assault Rifle Energy Gun Beam Rifle Ballistic Gun Assault Rifle Launcher EMP Blaster Impact Weapon Powered Hammer Slashing Weapon Katana Build | -11 -10 -10 -10 -9 -8 -7 -6 -5 -5 -5 -4 -4 -4 -3 ------- Run | Yrd Mat Min Exi Min Mat Fac Fac Fac Ext Cet Fac Upp Upp Res Slots Evolved 14 | . . . . . 4 2 2 2 . . 2 . . 2 Power . | . . . . . . . . . . . . . . . Propulsion 6 | . . . . . 2 . 2 . . . 1 . . 1 Utility 8 | . . . . . 2 2 . 2 . . 1 . . 1 Weapon . | . . . . . . . . . . . . . . . Parts Attached 101 | 6 4 . . 1 25 14 4 3 4 1 6 4 1 28 Power 9 | 1 . . . . 1 1 . . 1 . . 1 . 4 Engine 3 | 1 . . . . 1 1 . . . . . . . . Core 4 | . . . . . . . . . 1 . . 1 . 2 Reactor 2 | . . . . . . . . . . . . . . 2 Propulsion 35 | 2 . . . . 6 7 3 1 . . 4 1 . 11 Treads 7 | 2 . . . . 2 1 1 . . . 1 . . . Leg 10 | . . . . . 4 1 1 1 . . 1 . . 2 Wheel . | . . . . . . . . . . . . . . . Hover 4 | . . . . . . . . . . . . . . 4 Flight 14 | . . . . . . 5 1 . . . 2 1 . 5 Utility 23 | 1 2 . . . 3 3 1 2 3 . 2 . . 6 Device 9 | . . . . . . 1 . 1 1 . 1 . . 5 Storage 3 | 1 1 . . . 1 . . . . . . . . . Processor 1 | . . . . . 1 . . . . . . . . . Hackware 1 | . . . . . . . 1 . . . . . . . Protection 9 | . 1 . . . 1 2 . 1 2 . 1 . . 1 Artifact . | . . . . . . . . . . . . . . . Weapon 34 | 2 2 . . 1 15 3 . . . 1 . 2 1 7 Energy Gun 8 | . . . . . 5 . . . . . . 1 . 2 Energy Cannon . | . . . . . . . . . . . . . . . Ballistic Gun 8 | 2 1 . . . 4 1 . . . . . . . . Ballistic Cannon . | . . . . . . . . . . . . . . . Launcher 10 | . 1 . . 1 2 . . . . . . 1 1 4 Special Weapon . | . . . . . . . . . . . . . . . Impact Weapon 5 | . . . . . 4 . . . . 1 . . . . Slashing Weapon 3 | . . . . . . 2 . . . . . . . 1 Piercing Weapon . | . . . . . . . . . . . . . . . Special Melee Weapon . | . . . . . . . . . . . . . . . Unidentified Prototypes 2 | . . . . . . 1 . . . . . . . 1 Corrupted Parts 1 | . . . . . . . . . . . . . . 1 System Corruption 4 | . . . . . . . . . . . . . . 4 Parts Lost 54 | . . . . 1 10 3 . 1 4 3 . 2 . 30 Power 4 | . . . . . 1 . . . 1 . . 1 . 1 Propulsion 22 | . . . . . 4 2 . . . 1 . 1 . 14 Utility 15 | . . . . . 1 1 . 1 3 1 . . . 8 Weapon 13 | . . . . 1 4 . . . . 1 . . . 7 Highest Loss Streak 22 | . . . . 1 9 3 . 1 4 2 . 2 . 22 To Critical Strikes . | . . . . . . . . . . . . . . . Average Slot Usage (%) 81 | . 95 100 100 100 73 75 79 81 78 64 68 71 69 61 Engine 7 | . 14 14 14 14 8 4 6 5 3 . . . . . Treads 14 | . 28 28 28 28 16 5 6 5 5 1 5 5 5 3 Leg 5 | . . . . . 13 7 6 5 5 5 6 4 . . Flight 9 | . . . . . . 15 25 23 23 23 24 25 26 22 Device 2 | . . . . . . . . 5 5 5 7 10 10 12 Storage 8 | . 14 14 14 14 9 7 6 5 5 5 5 5 5 3 Processor 2 | . . . . . 7 6 . . . . . . . . Protection 10 | . 10 14 14 14 1 14 13 16 15 7 8 10 10 3 Energy Gun 1 | . . . . . 5 3 . . . . . . . . Ballistic Gun 10 | . 25 28 28 21 9 1 . . . . . . . . Impact Weapon 1 | . . . . . 1 . . . . 1 5 5 5 3 Slashing Weapon 1 | . . . . . . 5 6 5 5 5 . . . . Naked Turns 6 | . . . . . . . . . . . . . . 6 Heaviest Build 40 | 14 32 32 32 34 17 25 16 20 21 21 28 28 32 40 Greatest Support 42 | 40 40 40 40 40 40 30 22 22 22 22 29 29 33 42 Greatest Overweight (x) 6 | . . . . . 3 . . . . . . . . 6 Average Overweight (x) . | . . . . . . . . . . . . . . . Largest Inventory Capacity 40 | 8 15 15 15 15 40 40 40 40 40 40 40 40 40 40 Average Capacity 31 | 7 14 15 15 15 39 40 40 40 40 40 40 40 40 38 Most Carried 40 | 4 13 13 15 15 37 40 38 40 39 37 38 38 38 40 Average Carried 27 | 2 7 11 14 15 25 38 35 37 38 36 35 37 36 36 Final Capacity 40 | 8 15 15 15 15 40 40 40 40 40 40 40 40 40 5 Final Carried 40 | 4 10 13 15 15 37 39 35 40 37 36 38 35 38 3 Class Distribution -------------------- 58% | Hauler-Mutant 31% | Mutant 9% | Hauler-Sprinter Dominant Class ---------------- Mutant | -10/Materials Mutant | -10/Mines Mutant | -10/Exiles Mutant | -9/Mines Hauler-Mutant | -8/Materials Hauler-Sprinter | -7/Factory Hauler-Mutant | -6/Factory Hauler-Mutant | -5/Factory Hauler-Mutant | -5/Extension Hauler-Mutant | -5/Cetus Hauler-Mutant | -4/Factory Hauler-Mutant | -4/Upper Caves Hauler-Mutant | -4/Upper Caves Hauler-Mutant | -3/Research Resources | -11 -10 -10 -10 -9 -8 -7 -6 -5 -5 -5 -4 -4 -4 -3 ----------- Run | Yrd Mat Min Exi Min Mat Fac Fac Fac Ext Cet Fac Upp Upp Res Matter Collected 1344 | 194 82 89 . . 513 96 . . 4 . . 92 186 88 Remotely . | . . . . . . . . . . . . . . . Salvage Created 1967 | . 130 89 . 40 1116 155 . . . . . 81 118 238 Parts 117 | . 8 5 . 3 58 6 . . . . . 4 6 27 Haulers Intercepted 2 | . . . . . 2 . . . . . . . . . Recyclers Shooed 3 | . 2 . . . 1 . . . . . . . . . Parts Field Recycled . | . . . . . . . . . . . . . . . Retrieved Matter . | . . . . . . . . . . . . . . . Parts Self-Destructed 11 | . . . . . . . . . . . . 11 . . Prevented 1 | . . . . . . . . . . . . . 1 . Kills | -11 -10 -10 -10 -9 -8 -7 -6 -5 -5 -5 -4 -4 -4 -3 ------- Run | Yrd Mat Min Exi Min Mat Fac Fac Fac Ext Cet Fac Upp Upp Res Combat Hostiles Destroyed 43 | . 3 2 . 1 19 3 . . . . . 3 4 8 Melee 7 | . . . . . . 2 . . . . . . 1 4 Guns 19 | . . 2 . . 14 1 . . . . . 1 . 1 AOE 17 | . 3 . . 1 5 . . . . . . 2 3 3 Classes Destroyed 11 | . 2 1 . . 6 1 . . . . . . . 1 Worker 2 | . . . . . 1 . . . . . . . . 1 Builder 3 | . . . . . 1 . . . . . . . . 2 Hauler 2 | . . . . . 2 . . . . . . . . . Recycler 3 | . 1 . . . 2 . . . . . . . . . Operator 1 | . . . . . . 1 . . . . . . . . Swarmer 16 | . 3 . . . 3 . . . . . . 3 4 3 Cutter 5 | . . . . . . . . . . . . . . 5 Grunt 15 | . . 2 . 1 9 3 . . . . . . . . Brawler 1 | . . . . . 1 . . . . . . . . . Sentry 5 | . . . . . 5 . . . . . . . . . Hunter 1 | . . . . . 1 . . . . . . . . . Best Kill Streak 8 | . 3 2 . 1 8 1 . . . . . 2 4 3 Combat Bots Only 7 | . 3 2 . 1 7 1 . . . . . 2 4 2 Max Kills in Single Turn 4 | . 3 1 . 1 4 1 . . . . . 2 1 3 Gunslinging . | . . . . . . . . . . . . . . . Exploded 3 | . 3 . . 1 2 . . . . . . 2 1 2 Melee 1 | . . . . . . 1 . . . . . . 1 1 Uniques/NPCs Destroyed . | . . . . . . . . . . . . . . . Combat | -11 -10 -10 -10 -9 -8 -7 -6 -5 -5 -5 -4 -4 -4 -3 -------- Run | Yrd Mat Min Exi Min Mat Fac Fac Fac Ext Cet Fac Upp Upp Res Hostile Shots Fired 586 | . 17 11 . 12 109 23 . 6 57 52 . 26 9 264 Missed 248 | . 6 . . 2 31 10 . 4 27 31 . 11 3 123 Damage Taken 7842 | . 108 144 . 267 1377 455 . 45 769 560 . 322 136 3659 Core 2034 | . 17 11 . 87 306 16 . . 71 143 . 50 11 1322 Absorbed by Shields . | . . . . . . . . . . . . . . . Redirected to Shielding 218 | . . . . . . . . 15 105 47 . 13 . 38 Core Remaining (%) 81 | 100 . . . 54 44 97 100 . . 78 . . 94 . Volleys Fired 103 | . 6 6 . 1 69 4 . . . . . 4 4 9 Largest 2 | . 2 2 . 2 2 2 . . . . . 1 1 1 Hottest 106 | . 53 40 . 53 106 103 . . . . . 80 33 56 Shots Fired 172 | . 12 12 . 2 123 6 . . . . . 4 4 9 Gun 154 | . 11 12 . 1 120 6 . . . . . 2 . 2 Cannon . | . . . . . . . . . . . . . . . Launcher 18 | . 1 . . 1 3 . . . . . . 2 4 7 Special . | . . . . . . . . . . . . . . . Kinetic 116 | . 11 12 . 1 90 2 . . . . . . . . Thermal 38 | . . . . . 30 4 . . . . . 2 . 2 Explosive 3 | . . . . . . . . . . . . . . 3 Electromagnetic 15 | . 1 . . 1 3 . . . . . . 2 4 4 Robot Hit Streak 19 | . 3 5 . 3 19 3 . . . . . 1 1 1 Robot Miss Streak 6 | . 2 2 . . 2 4 . . . . . 3 4 6 Penetration Max . | . . . . . . . . . . . . . . . Secondary Targets 2 | . . 1 . . 1 . . . . . . . . . Max Gunslinging Chain 1 | . . 1 . . 1 . . . . . . . . . Shots Hit Robots 133 | . 7 7 . 2 90 15 . . . . . 2 3 7 Core Hits 97 | . 5 5 . 1 52 6 . . . . . 5 5 18 Critical Kills 1 | . . . . . . . . . . . . . 1 . Critical Parts Destroyed 1 | . . . . . . . . . . . . . . 1 Critical Strikes 3 | . . . . . 1 . . . . . . . 1 1 Burn 1 | . . . . . 1 . . . . . . . . . Smash 2 | . . . . . . . . . . . . . 1 1 Melee Attacks 132 | . . . . . 20 63 3 7 . 4 7 3 2 23 Impact 56 | . . . . . 20 . . . . 3 7 3 2 21 Slashing 76 | . . . . . . 63 3 7 . 1 . . . 2 Piercing . | . . . . . . . . . . . . . . . Sneak Attacks 2 | . . . . . . 2 . . . . . . . . Combat Hostiles 1 | . . . . . . 1 . . . . . . . . Follow-up Attacks . | . . . . . . . . . . . . . . . Damage Inflicted 3920 | . 162 100 . 112 1753 506 . . . . . 109 227 951 Guns 1485 | . 81 96 . 15 1179 76 . . . . . 21 . 17 Cannons . | . . . . . . . . . . . . . . . Explosions 1676 | . 81 . . 97 574 . . . . . . 88 121 715 Melee 753 | . . . . . . 430 . . . . . . 106 217 Ramming 6 | . . 4 . . . . . . . . . . . 2 Kinetic 1103 | . 81 96 . 15 911 . . . . . . . . . Thermal 773 | . 23 . . . 636 76 . . . . . 21 . 17 Explosive 528 | . . . . . . . . . . . . . . 528 Electromagnetic 757 | . 58 . . 97 206 . . . . . . 88 121 187 Impact 296 | . . . . . . . . . . . . . 106 190 Slashing 457 | . . . . . . 430 . . . . . . . 27 Piercing . | . . . . . . . . . . . . . . . Highest Corruption 10 | . . . . . 3 9 . 1 1 1 . . . 10 Average Corruption 2 | . . . . . 2 9 . 1 1 1 . . . 9 Corruption Purged . | . . . . . . . . . . . . . . . Corruption Blocked . | . . . . . . . . . . . . . . . Effects 14 | . . . . . 3 . . 3 2 . . . . 6 Message Errors 3 | . . . . . 1 . . . . . . . . 2 Matter Fused 6 | . . . . . 2 . . 2 . . . . . 2 Heat Flow Errors 1 | . . . . . . . . . . . . . . 1 Energy Discharges 2 | . . . . . . . . . 2 . . . . . Data Loss (minor) 1 | . . . . . . . . 1 . . . . . . Misdirections 1 | . . . . . . . . . . . . . . 1 Overload Shots . | . . . . . . . . . . . . . . . Overflow Damage 227 | . 3 . . . 25 91 . . . . . . . 108 Projectiles . | . . . . . . . . . . . . . . . Explosions 82 | . 3 . . . 25 . . . . . . . . 54 Melee 145 | . . . . . . 91 . . . . . . . 54 Knockbacks . | . . . . . . . . . . . . . . . Impact . | . . . . . . . . . . . . . . . Kinetic . | . . . . . . . . . . . . . . . Secondary . | . . . . . . . . . . . . . . . Self-Inflicted Damage 238 | . 7 . . . 15 . . . . . . 8 51 157 Shots 13 | . 1 . . . 1 . . . . . . 1 4 6 Rammed 2 | . . 1 . . . . . . . . . . . 1 Targets Rammed 2 | . . 1 . . . . . . . . . . . 1 Kicked . | . . . . . . . . . . . . . . . Crushed . | . . . . . . . . . . . . . . . Highest Temperature 208 | . . 19 . . 151 48 . . 7 4 . 56 . 208 Average Temperature 36 | . . 9 . . 44 27 . . 4 3 . 29 . 45 Received Heat Transfer 1465 | . 30 81 . 48 639 99 . . 168 108 . 36 . 256 Siege Activations . | . . . . . . . . . . . . . . . Robots Corrupted 1 | . . . . . 1 . . . . . . . . . Combat Hostiles . | . . . . . . . . . . . . . . . Parts Fried 4 | . . . . . 3 . . . . . . . . 1 Impact Corruptions 1 | . . . . . . . . . . . . . . 1 Robots Melted . | . . . . . . . . . . . . . . . Combat Hostiles . | . . . . . . . . . . . . . . . Parts Melted 3 | . . . . . 2 . . . . . . . . 1 Heat Transferred 1379 | . 50 . . . 1067 175 . . . . . 50 . 37 Parts Sabotaged . | . . . . . . . . . . . . . . . Parts Stolen . | . . . . . . . . . . . . . . . Parts Stripped . | . . . . . . . . . . . . . . . Power Chain Reactions 3 | . 2 . . . 1 . . . . . . . . . Alert | -11 -10 -10 -10 -9 -8 -7 -6 -5 -5 -5 -4 -4 -4 -3 ------- Run | Yrd Mat Min Exi Min Mat Fac Fac Fac Ext Cet Fac Upp Upp Res Peak Influence 381 | . 93 86 . 20 236 155 30 62 40 2 27 . . 381 Initial 172 | . . 36 . . 3 . 22 14 2 . . . . 172 Average 65 | . 45 53 . 11 72 38 24 40 2 1 4 . . 251 Maximum Alert Level 1 | . . . . . 1 . . . . . . . . 1 Low Security (%) 93 | 100 100 100 . 100 97 100 100 100 100 100 100 . . 37 Level 1 6 | . . . . . 2 . . . . . . . . 62 Level 2 . | . . . . . . . . . . . . . . . Level 3 . | . . . . . . . . . . . . . . . Level 4 . | . . . . . . . . . . . . . . . Level 5 . | . . . . . . . . . . . . . . . High Security . | . . . . . . . . . . . . . . . Max Security . | . . . . . . . . . . . . . . . Squads Dispatched 17 | . 1 . . . 2 3 1 5 1 1 . . . 3 Investigation 7 | . . . . . . 2 1 3 . 1 . . . . Extermination 1 | . . . . . . 1 . . . . . . . . Reinforcement 9 | . 1 . . . 2 . . 2 1 . . . . 3 Assault . | . . . . . . . . . . . . . . . Garrison . | . . . . . . . . . . . . . . . Intercept . | . . . . . . . . . . . . . . . Searches Triggered . | . . . . . . . . . . . . . . . Construction Impeded 1 | . . . . . . . . . . . . . . 1 Haulers Reinforced . | . . . . . . . . . . . . . . . Active Scanning Responses . | . . . . . . . . . . . . . . . Cargo Convoy Interrupts . | . . . . . . . . . . . . . . . Stealth | -11 -10 -10 -10 -9 -8 -7 -6 -5 -5 -5 -4 -4 -4 -3 --------- Run | Yrd Mat Min Exi Min Mat Fac Fac Fac Ext Cet Fac Upp Upp Res Distress Signals 6 | . . . . . . 1 . 1 . 2 . . . 2 Communications Jammed 10 | . . . . . . . . . . . . . . 10 Distress Signals 9 | . . . . . . . . . . . . . . 9 Times Spotted 122 | . 7 2 . 15 23 10 . 3 8 14 1 10 3 26 Peak Tracking Total 14 | . 4 2 . 12 8 3 . 2 7 14 1 10 4 11 Tactical Retreats 9 | . . . . . . 1 . . . . . 6 . 2 Traps | -11 -10 -10 -10 -9 -8 -7 -6 -5 -5 -5 -4 -4 -4 -3 ------- Run | Yrd Mat Min Exi Min Mat Fac Fac Fac Ext Cet Fac Upp Upp Res Traps Triggered 6 | . . . . . 3 2 . 1 . . . . . . Indirectly . | . . . . . . . . . . . . . . . Trap Hack Attempts . | . . . . . . . . . . . . . . . Triggered . | . . . . . . . . . . . . . . . Disarmed . | . . . . . . . . . . . . . . . Reprogrammed . | . . . . . . . . . . . . . . . Reused . | . . . . . . . . . . . . . . . Traps Extracted . | . . . . . . . . . . . . . . . Installed . | . . . . . . . . . . . . . . . Triggered . | . . . . . . . . . . . . . . . Machines | -11 -10 -10 -10 -9 -8 -7 -6 -5 -5 -5 -4 -4 -4 -3 ---------- Run | Yrd Mat Min Exi Min Mat Fac Fac Fac Ext Cet Fac Upp Upp Res Machines Disabled 3 | . . . . . 1 . . . . . . . . 2 Max in Single Turn 1 | . . . . . 1 . . . . . . . . 1 Garrison Access 1 | . . . . . . 1 . . . . . . . . Machines Repaired . | . . . . . . . . . . . . . . . Machines Dismantled . | . . . . . . . . . . . . . . . Machines Sabotaged . | . . . . . . . . . . . . . . . Overloaded Fab Kills . | . . . . . . . . . . . . . . . Hacking | -11 -10 -10 -10 -9 -8 -7 -6 -5 -5 -5 -4 -4 -4 -3 --------- Run | Yrd Mat Min Exi Min Mat Fac Fac Fac Ext Cet Fac Upp Upp Res Machines Accessed 35 | . 1 . 2 . 5 9 3 5 2 3 4 . . 1 Terminals 23 | . 1 . . . 3 5 2 3 2 3 3 . . 1 Fabricators 4 | . . . . . . 2 . 2 . . . . . . Repair Stations . | . . . . . . . . . . . . . . . Recycling Units 1 | . . . . . . . 1 . . . . . . . Scanalyzers 1 | . . . . . 1 . . . . . . . . . Garrison Access 4 | . . . . . 1 2 . . . . 1 . . . Total Hacks 90 | . 2 . 5 . 16 25 8 13 2 9 8 . . 2 Successful 38 | . . . 5 . 6 11 5 7 2 1 . . . 1 Failed 52 | . 2 . . . 10 14 3 6 . 8 8 . . 1 Catastrophic 10 | . . . . . 4 . . 2 . 1 2 . . 1 Database Lockouts . | . . . . . . . . . . . . . . . Manual 50 | . 2 . 1 . 10 17 6 8 . . 4 . . 2 Terminals 63 | . 2 . . . 10 16 7 9 2 9 6 . . 2 Fabricators 10 | . . . . . . 6 . 4 . . . . . . Repair Stations . | . . . . . . . . . . . . . . . Recycling Units 1 | . . . . . . . 1 . . . . . . . Scanalyzers 3 | . . . . . 3 . . . . . . . . . Garrison Access 8 | . . . . . 3 3 . . . . 2 . . . Terminal Hacks 20 | . . . 5 . 3 3 3 3 2 1 . . . . Record 7 | . . . 4 . . . 1 1 . 1 . . . . Part Schematic 1 | . . . . . . 1 . . . . . . . . Prototype ID Bank 1 | . . . . . 1 . . . . . . . . . Open Door 2 | . . . . . . . . . 2 . . . . . Level Access Points 1 | . . . . . . 1 . . . . . . . . Terminal Index 3 | . . . . . . 1 1 1 . . . . . . Alert Level 1 | . . . . . . . 1 . . . . . . . Unreport Threat 1 | . . . . . 1 . . . . . . . . . Recall Investigation 1 | . . . . . . . . 1 . . . . . . Hauler Manifests 1 | . . . . . 1 . . . . . . . . . Derelict Proto ID Bank 1 | . . . 1 . . . . . . . . . . . Fabricator Hacks 7 | . . . . . . 4 . 3 . . . . . . Load Schematic 3 | . . . . . . 2 . 1 . . . . . . Build 4 | . . . . . . 2 . 2 . . . . . . Repair Station Hacks . | . . . . . . . . . . . . . . . Recycling Unit Hacks 1 | . . . . . . . 1 . . . . . . . Retrieve Matter 1 | . . . . . . . 1 . . . . . . . Scanalyzer 3 | . . . . . 3 . . . . . . . . . Insert Component 2 | . . . . . 2 . . . . . . . . . Analyze 1 | . . . . . 1 . . . . . . . . . Garrison Access Hacks 1 | . . . . . . 1 . . . . . . . . Seal Access 1 | . . . . . . 1 . . . . . . . . Unauthorized Hacks 6 | . . . . . . 3 1 1 . . . . . 1 Terminals 6 | . . . . . . 3 1 1 . . . . . 1 Assimilate 1 | . . . . . . . . . . . . . . 1 Botnet 5 | . . . . . . 3 1 1 . . . . . . Fabricators . | . . . . . . . . . . . . . . . Repair Stations . | . . . . . . . . . . . . . . . Recycling Units . | . . . . . . . . . . . . . . . Scanalyzers . | . . . . . . . . . . . . . . . Garrison Access . | . . . . . . . . . . . . . . . Data Cores Recovered 1 | . . . . . . 1 . . . . . . . . Used . | . . . . . . . . . . . . . . . Hacking Detections 30 | . 1 . . . 5 8 3 4 1 3 4 . . 1 Full Trace Events 9 | . 1 . . . 1 2 1 3 . 1 . . . . Feedback Events 1 | . . . . . . . . 1 . . . . . . Corruption 1 | . . . . . . . . 1 . . . . . . Feedback Blocked . | . . . . . . . . . . . . . . . Robot Schematics Acquired . | . . . . . . . . . . . . . . . Robots Built 2 | . . . . . . . . 2 . . . . . . Authchips . | . . . . . . . . . . . . . . . Time 134 | . . . . . . . . 134 . . . . . . Total Robot Build Rating 8 | . . . . . . . . 8 . . . . . . Part Schematics Acquired 2 | . . . . . 1 1 . . . . . . . . Parts Built 3 | . . . . . . 2 . 1 . . . . . . Authchips . | . . . . . . . . . . . . . . . Time 225 | . . . . . . 189 . 36 . . . . . . Total Part Build Rating 9 | . . . . . . 6 . 3 . . . . . . Parts Repaired . | . . . . . . . . . . . . . . . Time . | . . . . . . . . . . . . . . . Parts Recycled . | . . . . . . . . . . . . . . . Recycled Matter . | . . . . . . . . . . . . . . . Retrieved Matter . | . . . . . . . . . . . . . . . Retrieved Components . | . . . . . . . . . . . . . . . Parts Scanalyzed 1 | . . . . . 1 . . . . . . . . . Part Schematics Acquired 1 | . . . . . 1 . . . . . . . . . Parts Damaged . | . . . . . . . . . . . . . . . Bothacking | -11 -10 -10 -10 -9 -8 -7 -6 -5 -5 -5 -4 -4 -4 -3 ------------ Run | Yrd Mat Min Exi Min Mat Fac Fac Fac Ext Cet Fac Upp Upp Res Used RIF Installer . | . . . . . . . . . . . . . . . Robots Hacked . | . . . . . . . . . . . . . . . Non-combat . | . . . . . . . . . . . . . . . Combat . | . . . . . . . . . . . . . . . Robot Hacks Applied . | . . . . . . . . . . . . . . . Relay Couplers Released . | . . . . . . . . . . . . . . . Fabnet Peak Effective % . | . . . . . . . . . . . . . . . Robots Rewired . | . . . . . . . . . . . . . . . Allies Hacked . | . . . . . . . . . . . . . . . Hacks Repelled . | . . . . . . . . . . . . . . . Allies | -11 -10 -10 -10 -9 -8 -7 -6 -5 -5 -5 -4 -4 -4 -3 -------- Run | Yrd Mat Min Exi Min Mat Fac Fac Fac Ext Cet Fac Upp Upp Res Total Allies 7 | . . 1 . . . . . 2 3 . . . . 1 Largest Group 3 | . . 1 1 . . . . 2 3 . . . . 1 Highest-Rated Group 84 | . . 31 31 . . . . 64 84 . . . . 26 Highest-Rated Ally 39 | . . 31 31 . . . . 32 39 . . . . 26 Total Orders 2 | . . . . . . . . . . . . . . 2 EXPLORE 2 | . . . . . . . . . . . . . . 2 Ally Attacks 13 | . . . . . . . . 3 10 . . . . . Total Damage 445 | . . . . . . . . 169 276 . . . . . Kills 1 | . . . . . . . . . 1 . . . . . Allies Corrupted . | . . . . . . . . . . . . . . . Allies Melted . | . . . . . . . . . . . . . . . Intel | -11 -10 -10 -10 -9 -8 -7 -6 -5 -5 -5 -4 -4 -4 -3 ------- Run | Yrd Mat Min Exi Min Mat Fac Fac Fac Ext Cet Fac Upp Upp Res Robot Analysis Total . | . . . . . . . . . . . . . . . Derelict Logs Recovered 1 | . . 1 . . . . . . . . . . . . Drone Launches 2 | . . . . . . . . . . . . . . 2 Drone Recoveries 1 | . . . . . . . . . . . . . . 1 Exploration | -11 -10 -10 -10 -9 -8 -7 -6 -5 -5 -5 -4 -4 -4 -3 ------------- Run | Yrd Mat Min Exi Min Mat Fac Fac Fac Ext Cet Fac Upp Upp Res Turns Passed 6066 | 74 166 515 1163 19 1241 1028 88 475 277 62 166 272 73 447 Spaces Moved 5140 | 40 83 307 725 10 612 1076 124 459 372 126 221 452 105 428 Core 21 | 2 . . . . 4 . . . . . . . . 15 Treads 1232 | 38 83 307 725 10 69 . . . . . . . . . Legs 858 | . . . . . 539 319 . . . . . . . . Wheels . | . . . . . . . . . . . . . . . Hover 27 | . . . . . . . . . . . . . . 27 Flight 3002 | . . . . . . 757 124 459 372 126 221 452 105 386 Fastest Speed 22 | 50 160 160 160 160 120 29 58 58 58 38 56 52 49 22 Average Speed 87 | 154 160 160 160 160 129 57 61 58 58 41 60 55 51 46 Slowest Speed 350 | 160 160 160 160 160 200 125 62 58 58 58 68 59 52 350 Overloaded Moves . | . . . . . . . . . . . . . . . Propulsion Burnouts . | . . . . . . . . . . . . . . . Robots Hopped 10 | . . . . . . 4 . . 3 3 . . . . Cave-ins Triggered 2 | . . . . . . 1 . . . . . . . 1 Exploration Rate (%) 31 | 5 20 54 92 6 46 26 3 17 49 68 9 57 13 11 Regions Visited 14 Branch Regions 7 Pre-discovered Areas 1 | . . . 1 . . . . . . . . . . . Known Exits Taken 2 | . . . . . 1 1 . . . . . . . . Unknown Exits Taken 12 | 1 1 1 1 1 . . 1 1 1 1 1 1 1 . Scrap Searched 1 | . . . . . . . . . . . . . 1 . Spaces Dug 114 | . . . . . 20 49 3 7 . . 6 3 . 26 Terrain Destroyed 136 | . 3 . . . 34 49 3 7 . . 6 3 . 31 Melee 98 | . . . . . 20 49 3 7 . . 6 3 . 10 Projectile . | . . . . . . . . . . . . . . . AOE 38 | . 3 . . . 14 . . . . . . . . 21 Terrain Rammed . | . . . . . . . . . . . . . . . Walls Destroyed . | . . . . . . . . . . . . . . . Machines Disabled . | . . . . . . . . . . . . . . . Actions | -11 -10 -10 -10 -9 -8 -7 -6 -5 -5 -5 -4 -4 -4 -3 --------- Run | Yrd Mat Min Exi Min Mat Fac Fac Fac Ext Cet Fac Upp Upp Res Total 6279 | 49 105 318 729 11 905 1377 130 656 430 126 239 465 115 624 Wait 669 | . 2 2 . . 139 182 . 164 55 . . . . 125 Move 5107 | 39 82 306 724 9 611 1066 123 458 367 119 220 451 104 428 Hop 8 | . . . . . . 4 . . 1 3 . . . . Pick Up 94 | 4 6 3 1 . 39 17 . 6 2 . 6 . 4 6 Fast Attach 26 | 6 3 . . . 6 2 . . . . 1 . . 8 Attach 50 | . 1 . . . 9 4 4 2 4 1 3 4 1 17 Detach 11 | . 3 . . . 1 1 . . 1 . . 3 . 2 Swap 25 | . . . . 1 10 8 . 1 . . 2 . . 3 Drop 13 | . 2 . 1 . 1 7 . . . . . . . 2 Fire 103 | . 6 6 . 1 69 4 . . . . . 4 4 9 Melee 131 | . . . . . 20 63 3 7 . 3 7 3 2 23 Ram 1 | . . . . . . . . . . . . . . 1 Kick . | . . . . . . . . . . . . . . . Crush 1 | . . 1 . . . . . . . . . . . . Escape Stasis 37 | . . . . . . 19 . 18 . . . . . . Rewire 3 | . . . 3 . . . . . . . . . . . Trap . | . . . . . . . . . . . . . . . Miscellaneous . | . . . . . . . . . . . . . . . Route ------- -11/Scrapyard -10/Materials -10/Mines (discovered 2 exits: [*Mat] / *Exi) -10/Exiles -9/Mines -8/Materials (discovered 2 exits: *Fac x2) -7/Factory (discovered 4 exits: *Fac x4) -6/Factory -5/Factory -5/Extension (discovered 2 exits: *Fac / *Cet) -5/Cetus (discovered 2 exits: *Fac / [*Arc]) -4/Factory -4/Upper Caves -4/Upper Caves -3/Research History --------- Turn | Location | Event 21 | -11/Scrapyard | Discovered new exit (range 16) 75 | -11/Scrapyard | Entered Materials 134 | -10/Materials | Discovered new exit (range 13) 241 | -10/Materials | Entered Mines 249 | -10/Mines | Met a Derelict bent on vengeance 305 | -10/Mines | Build established: Mutant 498 | -10/Mines | Discovered new exit (range 14) 573 | -10/Mines | Learned 2 Materials zone layouts 576 | -10/Mines | Received a Mining Laser from a helpful Derelict 615 | -10/Mines | YI-UF0 nonchalantly dropped a Grenade Launcher on the ground 746 | -10/Mines | Deemed a non-threat by the Exiles lab entrance 748 | -10/Mines | Discovered new exit (range 5) 756 | -10/Mines | Entered Exiles 756 | -10/Exiles | Accompanied by 1 ally 800 | -10/Exiles | Met 8R-AWN 822 | -10/Exiles | Met EX-HEX 865 | -10/Exiles | Met EX-BIN 886 | -10/Exiles | Aligned with FarCom system 888 | -10/Exiles | Given EX-Vault access code 982 | -10/Exiles | Opened EX-Vault 997 | -10/Exiles | Found Lightpack 2.0 1033 | -10/Exiles | Warned to stay clear of 0b10 Research branches 1080 | -10/Exiles | Met EX-DEC 1091 | -10/Exiles | Learned location of Zion (-6) 1194 | -10/Exiles | Visited The Gauntlet 1446 | -10/Exiles | Discovered new exit (range 15) 1919 | -10/Exiles | Left Exiles lab with Lightpack 2.0 1919 | -10/Exiles | Entered Mines 1920 | -9/Mines | Assembled infested the area 1923 | -9/Mines | Discovered new exit (range 8) 1925 | -9/Mines | Assisted by a Guerilla fighting off Assembled 1938 | -9/Mines | Entered Materials 1938 | -8/Materials | Evolved 4 slots: Propulsion x2, Utility x2 1939 | -8/Materials | Identified exit to Factory 2215 | -8/Materials | Build established: Hauler-Mutant 2308 | -8/Materials | Destroyed 7 combat bots 2308 | -8/Materials | Lost 9 parts (1p4n4w) 2639 | -8/Materials | Core integrity fell below 50% 3160 | -8/Materials | Discovered exit to Factory (range 15) 3179 | -8/Materials | Entered Factory 3179 | -7/Factory | Evolved 2 slots: Utility x2 3852 | -7/Factory | Fabricated Imp. VTOL Module? 3948 | -7/Factory | Build established: Hauler-Sprinter 3959 | -7/Factory | Identified exit to Factory 4051 | -7/Factory | Fabricated Hacking Suite? 4197 | -7/Factory | Crushed by falling debris 4207 | -7/Factory | Entered another Factory area 4207 | -6/Factory | Evolved 2 slots: Propulsion x2 4228 | -6/Factory | Lost 3 parts (2n1u) 4290 | -6/Factory | Discovered new exit (range 5) 4295 | -6/Factory | Entered another Factory area 4295 | -5/Factory | Evolved 2 slots: Utility x2 4496 | -5/Factory | Build established: Hauler-Mutant 4643 | -5/Factory | Fabricated Y-54 Guardian (x2) 4751 | -5/Factory | Fabricated Hacking Suite? 4763 | -5/Factory | Discovered new exit (range 13) 4770 | -5/Factory | Entered Extension 4789 | -5/Extension | Rescued a captive Derelict 4800 | -5/Extension | Rescued a captive Derelict 4801 | -5/Extension | Rescued a captive Derelict 4920 | -5/Extension | Lost 3 allies 4973 | -5/Extension | Spotted B-75 Beast 4978 | -5/Extension | Spotted B-75 Beast 5016 | -5/Extension | Lost 4 parts (1p3u) 5035 | -5/Extension | Discovered new exit (range 16) 5035 | -5/Extension | Discovered new exit (range 12) 5047 | -5/Extension | Entered Cetus 5056 | -5/Cetus | Spotted Cetus Guard 5056 | -5/Cetus | Spotted Cetus Guard 5056 | -5/Cetus | Spotted Cetus Guard 5059 | -5/Cetus | Spotted Cetus Guard 5094 | -5/Cetus | Discovered new exit (range 16) 5101 | -5/Cetus | Spotted Cetus Guard 5101 | -5/Cetus | Spotted Cetus Guard 5102 | -5/Cetus | Spotted Cetus Guard 5103 | -5/Cetus | Discovered new exit (range 15) 5103 | -5/Cetus | Spotted Cetus Guard 5109 | -5/Cetus | Entered Factory 5109 | -4/Factory | Evolved 2 slots: Propulsion x1, Utility x1 5252 | -4/Factory | Discovered new exit (range 8) 5275 | -4/Factory | Entered Upper Caves 5342 | -4/Upper Caves | Attracted the attention of an 0b10 checkpoint 5377 | -4/Upper Caves | Attracted the attention of an 0b10 outpost 5526 | -4/Upper Caves | Discovered new exit (range 10) 5539 | -4/Upper Caves | Spotted B-86 Titan 5547 | -4/Upper Caves | Entered another Upper Caves area 5605 | -4/Upper Caves | Discovered new exit (range 6) 5620 | -4/Upper Caves | Entered Research 5620 | -3/Research | Evolved 2 slots: Propulsion x1, Utility x1 5774 | -3/Research | Lost 5 parts (2n3u) 5929 | -3/Research | Crushed by falling debris 5933 | -3/Research | System corruption reached 10% 6044 | -3/Research | Core integrity fell below 50% 6057 | -3/Research | Core integrity fell below 20% 6061 | -3/Research | Released all parts (3) 6067 | -3/Research | Destroyed by H-77 Assassin with Coil Gun Last Messages --------------- 06055_ Critical hit (Burn: +50). 06056_ U-05 Engineer lays Concrete. 06056_ Slug penetrates G-67 Veteran. 06056_ Slug penetrates Wall. 06057_ Proton Missile Launcher destroyed. 06057_ U-05 Engineer lays Concrete. 06057_ Penetrated by Slug. 06057_ Imp. Linear Gravjet destroyed. 06057_ Slug penetrates Wall. 06057_ Slug penetrates G-67 Veteran. 06059_ Penetrated by Slug. 06060_ 4BD2PI#UN Map ----- +----------------------------------------------------+ | ?????????????????????? #???# | | ?????????????????????? #???# | | ?????????????????????? ##### #???# | | ??????????????????????? #####+##??#"# | | ??????????????????????? # #??##### | | ???????????????????????? # [#??????# ## | | ???????????????????????? # ! #??????##?? | | ?????????????????? """ # #?????????? | | ?????????????????# """ # ] ! #?????????? | | ?????????????????# """ # #?##?###### | | ???????????????? ###+###### ## | | ???????????????? """""^ | | ???????????????? ""T"" | | ?????????????????# ^ ^ | | ???????????????????#### """##### ^ | | ??????????????????????#"" F"?????# | | ???????????????????????""""??????# | | ?????????????????????????????????#^ | | ??????????????????????#######????# ^ | | ??????????????????????# #????# | | ??????????????????????? "" ???### ^ """"" =!= | | ???????????????????????kT ??? ^ """""!%=/ | | ???????????w???????????? ???#### """"" /! | | ???????????????????????? ??????# | | ????????????????????#####/######## =! | | ????????????????????# @ ; H =%! | | ????????????????????# # % = h ]## | | ????????????????????# + *= gh #? | | ????????????????????# #### #####+### #? | | ????????????????????# #??# #??? ?#% #? | | ????????????????????#! #??# #??? ?##/[#### | | ????????????????????# *] #??# #?? #!!=!% # | | ????????????????????# ] #??# #?? ! # [%* # | | ????????????????????# #??# #? #![=/! # | | ????????????????????##########??# #? #%***! # | | ????????????????????????????????# #########*!*! # | | ????????????????????????????????? ????????# ! # | | ?????????????????????????????????Y????????######## | | ????????????????????????????????? ???????????????? | | ????????????????????????????????? ???????????????? | | ????????????????????????????????? ???????????????? | | ????????????????????????????????? ???????????????? | | ?????????????????????????????????+???????????????? | | ?????????????????????????????????????????????????? | | ?????????????????????????????????????????????????? | | ?????????????????????????????????????????????????? | | ?????????????????????????????????????????????????? | | ?????????????????????????????????????????????????? | | ?????????????????????????????????????????????????? | | ?????????????????????????????????????????????????? | +----------------------------------------------------+ Best States ------------- Heat Dissipation 46 Energy Generation 19 Energy Capacity 250 Matter Stores 300 Matter Capacity 300 Sight Range 16 Terrain Scan Density 10 ECM Strength 2 Jamming Range 12 Armor Coverage 300 Propulsion Shielding 66 Utility Shielding 66 Evasion (%) 75 Recoil Reduction 2 Offensive Hacking 10 Item Schematics ----------------- Imp. VTOL Module | -8/Materials | Scanalyzed Hacking Suite | -7/Factory | Hacked Robot Schematics ------------------ None Fabricated ------------ Imp. VTOL Module | x1 | -7/Factory Hacking Suite | x1 | -7/Factory Y-54 Guardian | x2 | -5/Factory | Preloaded Hacking Suite | x1 | -5/Factory Alien Tech Used ----------------- None Achievements -------------- Packrat Party Time Challenges ------------ None Game ------ Seed DecoyTransmissionCarapace Manual? 0 Play Time 01:39:09 Cumulative 22.9 hours Start 2024.04.26 @ 04:35:43 End 2024.04.26 @ 17:10:01 Sessions 4 Manual Loads 0 Difficulty Rogue Special Mode None Game No. 12 Rogue 12 Adventurer 0 Explorer 0 Win Type - Total 0 Types 0/0/0/0/0/0/0/0/0 Lore% 19 Gallery% 24 Achievement% 22 Wizard Run 0 Options --------- Layout 1 ASCII 0 Keyboard 1 Movement Arrows Keybinds 0 Fullscreen 2 Font 24/Smallcaps Map View 50x35 Zoom Use 0% Tactical HUD 1 Map Filters NONE Filters NONE Steam 0 RUN: a4cbbd53-7c54-45ce-8c4b-3977a86181e0